bitfinex/quotes_BTCUSD_20250124
["timestamp","ask_amount","ask_price","bid_price","bid_amount"]
[1737738529810,0.00029821,105800.0,105790.0,0.46763729]
[1737738531439,0.00029821,105800.0,105790.0,0.49063729]
[1737738532189,0.00029821,105800.0,105790.0,0.46763729]
[1737738532595,0.00029821,105800.0,105790.0,0.48649875]
[1737738535515,0.00029821,105800.0,105790.0,0.50949875]
[1737738536266,0.00029821,105800.0,105790.0,0.48649875]
[1737738537884,0.00029821,105800.0,105790.0,0.38915146]
[1737738538498,0.00029821,105800.0,105790.0,0.48649875]
[1737738539566,0.00029821,105800.0,105790.0,0.50949875]
[1737738541024,0.00029821,105800.0,105790.0,0.83199875]
[1737738541249,0.00029821,105800.0,105790.0,0.88179875]
[1737738541585,0.00029821,105800.0,105790.0,0.89179875]
[1737738542207,2.1e-07,105800.0,105790.0,0.91179875]
[1737738542418,0.00029821,105840.0,105830.0,0.141736]
[1737738542630,0.00079039,105840.0,105830.0,0.26302801]
[1737738542835,0.00079039,105840.0,105830.0,0.73458329]
[1737738544082,0.00079039,105840.0,105830.0,0.71158329]
[1737738545525,0.00079039,105840.0,105830.0,0.73051746]
[1737738546113,0.00079039,105840.0,105830.0,0.614236]
[1737738546310,0.00079039,105840.0,105830.0,0.291736]
[1737738546518,0.00079039,105840.0,105830.0,0.141736]
[1737738547826,0.00079039,105840.0,105830.0,0.14268084]
[1737738549383,0.00079039,105840.0,105830.0,0.24002813]
[1737738549585,0.00079039,105840.0,105830.0,0.52018329]
[1737738549995,0.00079039,105840.0,105830.0,0.38908329]
[1737738552278,0.00079039,105840.0,105830.0,0.291736]
[1737738554391,0.00079039,105840.0,105830.0,0.141736]
[1737738556420,0.00079039,105840.0,105830.0,0.2400281]
[1737738556602,0.00079039,105840.0,105830.0,0.23908329]
[1737738559358,0.00079039,105840.0,105830.0,0.38908329]
[1737738559600,0.00079039,105840.0,105830.0,0.73458329]
[1737738559802,0.00079039,105840.0,105830.0,0.88388329]
[1737738560199,0.00079039,105840.0,105830.0,0.9119447]
[1737738560406,0.00029821,105850.0,105840.0,0.314723]
[1737738560696,0.0003912,105850.0,105840.0,0.54137029]
[1737738560965,0.0003912,105850.0,105840.0,0.86387029]
[1737738567143,0.0003912,105850.0,105840.0,0.84087029]
[1737738567363,0.0003912,105850.0,105840.0,0.56157029]
[1737738567806,0.0003912,105850.0,105840.0,0.71157029]
[1737738568260,0.0003912,105850.0,105840.0,0.72502732]
[1737738568882,0.0003912,105850.0,105840.0,0.74436066]
[1737738569340,0.0003912,105850.0,105840.0,0.59436066]
[1737738569749,0.0003912,105850.0,105840.0,0.49701337]
[1737738571035,0.0003912,105850.0,105840.0,0.47768003]
[1737738571863,0.0003912,105850.0,105840.0,0.57502732]
[1737738572072,0.0003912,105850.0,105840.0,0.72502732]
[1737738572497,0.0003912,105850.0,105840.0,0.47768003]
[1737738572699,0.0003912,105850.0,105840.0,0.141723]
[1737738572903,0.0003912,105850.0,105840.0,0.1426677]
[1737738573835,0.0003912,105850.0,105840.0,0.24001499]
[1737738574086,0.0003912,105850.0,105840.0,0.23907029]
[1737738576236,0.0003912,105850.0,105840.0,0.141723]
[1737738576888,0.0003912,105850.0,105840.0,0.1426677]
[1737738577688,0.1421072,105850.0,105830.0,0.519675]
[1737738577887,0.3310542,105850.0,105830.0,0.61702229]
[1737738578119,0.3310542,105850.0,105830.0,0.42805229]
[1737738578342,0.3310542,105850.0,105830.0,0.61702529]
[1737738578556,0.1421072,105850.0,105830.0,0.61702429]
[1737738578765,0.0003912,105850.0,105840.0,0.141723]
[1737738579929,0.0003912,105850.0,105840.0,0.14266772]
[1737738580348,0.0003912,105850.0,105840.0,0.141723]
[1737738581499,0.1421022,105850.0,105830.0,0.61702429]
[1737738581731,0.3310482,105850.0,105830.0,0.61702429]
[1737738581990,0.141724,105840.0,105820.0,1.02452737]
[1737738582216,0.141724,105840.0,105830.0,0.141736]
[1737738582437,0.7089702,105850.0,105830.0,0.141736]
[1737738582644,0.5200132,105850.0,105820.0,0.98013266]
[1737738582823,0.141723,105840.0,105830.0,0.000142]
[1737738583230,0.5200182,105850.0,105830.0,0.141877]
[1737738583435,0.5200162,105850.0,105830.0,0.141877]
[1737738583871,0.0003912,105850.0,105830.0,0.330858]
[1737738584073,0.0003912,105850.0,105830.0,0.519832]
[1737738584286,0.3310522,105850.0,105830.0,0.519822]
[1737738584866,0.3310522,105850.0,105830.0,0.141877]
[1737738585109,0.5200082,105850.0,105830.0,0.330859]
[1737738585733,0.1421052,105850.0,105830.0,0.50183299]
[1737738585938,0.3310522,105850.0,105830.0,0.50183299]
[1737738586769,0.5200072,105850.0,105830.0,0.31285099]
[1737738587026,0.3782932,105850.0,105820.0,0.83013266]
[1737738587244,0.141725,105840.0,105820.0,0.49654437]
[1737738587480,0.330698,105840.0,105820.0,0.47762669]
[1737738587741,0.66457349,105850.0,105830.0,0.141736]
[1737738587991,0.141723,105840.0,105820.0,0.66661769]
[1737738588231,0.66457349,105850.0,105820.0,0.66661769]
[1737738588232,0.85353549,105850.0,105830.0,0.141736]
[1737738588487,0.66457349,105850.0,105830.0,0.330718]
[1737738590174,0.85353449,105850.0,105830.0,0.141734]
[1737738590410,0.330688,105840.0,105820.0,0.85560169]
[1737738590637,0.330688,105840.0,105820.0,0.53310169]
[1737738590872,0.79601449,105850.0,105830.0,0.330715]
[1737738591095,0.93776849,105850.0,105830.0,0.330715]
[1737738591304,0.8404212,105850.0,105830.0,0.330715]
[1737738591510,0.6514672,105850.0,105830.0,0.519697]
[1737738592190,0.4625132,105850.0,105830.0,0.708671]
[1737738592416,0.4625132,105850.0,105830.0,0.70866]
[1737738592621,0.6514602,105850.0,105830.0,0.519678]
[1737738592833,0.8404072,105850.0,105830.0,0.330704]
[1737738593042,0.3207912,105850.0,105840.0,0.141723]
[1737738594540,0.3207912,105850.0,105840.0,0.14266775]
[1737738594786,0.0003912,105850.0,105840.0,0.24001504]
[1737738594992,0.0003912,105850.0,105840.0,0.23907029]
[1737738595203,0.0003912,105850.0,105840.0,0.141723]
[1737738595838,0.1421002,105850.0,105840.0,0.141723]
[1737738596059,0.1421002,105850.0,105830.0,0.842315]
[1737738596243,0.3310482,105850.0,105830.0,1.031288]
[1737738596574,0.1421002,105850.0,105840.0,0.141723]
[1737738596790,0.0003912,105850.0,105840.0,0.14266775]
[1737738597155,0.0003912,105850.0,105840.0,0.141723]
[1737738597382,0.0003912,105850.0,105840.0,0.1426677]
[1737738597976,0.0003912,105850.0,105840.0,0.141723]
[1737738598178,0.0003912,105850.0,105840.0,0.1426677]
[1737738598693,0.0003912,105850.0,105840.0,0.141723]
[1737738599274,0.3310552,105850.0,105830.0,0.519813]
[1737738599486,0.1421062,105850.0,105840.0,0.141723]
[1737738600324,0.0003912,105850.0,105840.0,0.141723]
[1737738601941,0.0003912,105850.0,105840.0,0.14266775]
[1737738602400,0.0003912,105850.0,105840.0,0.36851504]
[1737738602605,0.0003912,105850.0,105840.0,0.51757029]
[1737738604333,0.0003912,105850.0,105840.0,0.86307029]
[1737738604553,0.0003912,105850.0,105840.0,0.89121695]
[1737738606286,0.0003912,105850.0,105840.0,0.90418753]
[1737738609147,2e-07,105850.0,105840.0,0.98875478]
[1737738609795,2e-07,105850.0,105840.0,1.54235478]
[1737738610010,2e-07,105850.0,105840.0,1.55235478]
[1737738610671,0.00029862,105890.0,105870.0,0.15]
[1737738610886,0.00044599,105890.0,105880.0,0.23996059]
[1737738611093,0.00044599,105890.0,105880.0,0.23901629]
[1737738612955,0.00044599,105890.0,105880.0,0.09734729]
[1737738613126,0.00044599,105890.0,105880.0,0.23996059]
[1737738613327,0.00044599,105890.0,105880.0,0.23901629]
[1737738614311,0.00044599,105890.0,105880.0,0.46721629]
[1737738614965,0.00044599,105890.0,105880.0,0.47981616]
[1737738616801,0.00044599,105890.0,105880.0,0.49838614]
[1737738618628,0.00044599,105890.0,105880.0,0.52138614]
[1737738618967,0.00044599,105890.0,105880.0,0.56718614]
[1737738621869,0.00044599,105890.0,105880.0,0.54418614]
[1737738622752,0.00044599,105890.0,105880.0,0.17283885]
[1737738622942,0.00044599,105890.0,105880.0,0.17378317]
[1737738624083,0.00044599,105890.0,105880.0,0.32378317]
[1737738624315,0.00044599,105890.0,105880.0,0.32283885]
[1737738627969,0.00044599,105890.0,105880.0,0.30426887]
[1737738628191,0.00044599,105890.0,105880.0,0.01259987]
[1737738628370,0.00044599,105890.0,105880.0,0.141669]
[1737738628806,0.00044599,105890.0,105880.0,0.29261343]
[1737738629013,0.00044599,105890.0,105880.0,0.2918109]
[1737738633665,0.00044599,105890.0,105880.0,0.41215819]
[1737738633893,0.00044599,105890.0,105880.0,0.85875819]
[1737738637974,0.00044599,105890.0,105880.0,1.42045953]
[1737738640169,0.00029779,105900.0,105890.0,0.224956]
[1737738640378,0.00029779,105900.0,105890.0,0.34530329]
[1737738641028,0.00029779,105900.0,105890.0,0.66780329]
[1737738643637,0.00029779,105900.0,105890.0,0.67990464]
[1737738644053,0.00029779,105900.0,105890.0,0.69876835]
[1737738645050,0.00029779,105900.0,105890.0,0.72689796]
[1737738647121,0.00029779,105900.0,105890.0,1.54157803]
[1737738647346,7.9e-07,105900.0,105890.0,1.56157803]
[1737738648004,7.9e-07,105900.0,105890.0,1.47709796]
[1737738650326,0.00025879,105910.0,105900.0,0.396743]
[1737738650520,0.00025879,105910.0,105900.0,1.3783199]
[1737738651140,7.9e-07,105910.0,105900.0,1.4460199]
[1737738651340,7.9e-07,105910.0,105900.0,1.4560199]
[1737738651985,7.9e-07,105910.0,105900.0,1.47377927]
[1737738652602,7.9e-07,105910.0,105900.0,1.4560199]
[1737738652809,7.9e-07,105910.0,105900.0,1.4460199]
[1737738653056,7.9e-07,105910.0,105900.0,1.4260199]
[1737738653265,7.9e-07,105910.0,105900.0,1.4030199]
[1737738653883,7.9e-07,105910.0,105900.0,1.37489029]
[1737738654930,7.9e-07,105910.0,105900.0,0.23899029]
[1737738655349,7.9e-07,105910.0,105900.0,0.38899029]
[1737738656829,7.9e-07,105910.0,105900.0,0.41199029]
[1737738657239,7.9e-07,105910.0,105900.0,0.38899029]
[1737738659897,0.0775,105900.0,105890.0,0.01224315]
[1737738660108,0.1803082,105900.0,105890.0,0.0001418]
[1737738660315,0.0775,105900.0,105890.0,0.0001418]
[1737738660767,0.31649029,105900.0,105890.0,0.0001418]
[1737738661375,0.17484729,105900.0,105890.0,0.0001418]
[1737738661952,0.0775,105900.0,105890.0,0.1417978]
[1737738662585,0.0775,105900.0,105890.0,0.22631136]
[1737738663189,0.0775,105900.0,105890.0,0.08465536]
[1737738663602,0.219143,105900.0,105890.0,0.08465536]
[1737738664341,0.0775,105900.0,105890.0,0.08465536]
[1737738665339,0.219143,105900.0,105890.0,0.08465536]
[1737738666016,0.219143,105900.0,105890.0,0.0001418]
[1737738666467,0.0775,105900.0,105890.0,0.1417978]
[1737738666905,0.0775,105900.0,105890.0,0.0001418]
[1737738667129,0.219143,105900.0,105890.0,0.0001418]
[1737738667336,0.0775,105900.0,105890.0,0.1417978]
[1737738667801,0.0775,105900.0,105890.0,0.0001418]
[1737738668121,0.219143,105900.0,105890.0,0.0001418]
[1737738669190,0.41929849,105900.0,105890.0,0.0001418]
[1737738669703,0.31649029,105900.0,105890.0,0.0001418]
[1737738673276,0.0775,105900.0,105890.0,0.1417978]
[1737738676185,0.45347179,105910.0,105890.0,0.1417978]
[1737738676399,0.45347179,105910.0,105890.0,0.5195428]
[1737738676612,0.26463179,105910.0,105890.0,0.5195428]
[1737738676783,0.55081808,105910.0,105890.0,0.1417978]
[1737738676990,0.73966608,105910.0,105890.0,0.1417978]
[1737738677236,0.73966608,105910.0,105890.0,0.3306708]
[1737738678519,0.73966608,105910.0,105890.0,0.0001418]
[1737738678520,0.141643,105900.0,105890.0,0.0001418]
[1737738678720,0.59803508,105910.0,105890.0,0.0001418]
[1737738678931,0.73967608,105910.0,105890.0,0.3306708]
[1737738679139,0.55082808,105910.0,105890.0,0.3306708]
[1737738679495,0.73967508,105910.0,105890.0,0.3306708]
[1737738679910,0.92852508,105910.0,105890.0,0.3306708]
[1737738680112,0.73967508,105910.0,105890.0,0.3306708]
[1737738681812,0.55082808,105910.0,105890.0,0.3306708]
[1737738682113,0.73967508,105910.0,105890.0,0.3306708]
[1737738682625,0.55082808,105910.0,105890.0,0.3306708]
[1737738682766,0.45348079,105910.0,105890.0,0.5195448]
[1737738682968,0.45348079,105910.0,105890.0,0.3306708]
[1737738683786,0.26464179,105910.0,105890.0,0.5195448]
[1737738683997,0.26464179,105910.0,105890.0,0.5195368]
[1737738684176,0.45348279,105910.0,105890.0,0.3306628]
[1737738684687,0.45348279,105910.0,105890.0,0.5195378]
[1737738685063,0.40598279,105910.0,105890.0,0.5195378]
[1737738686975,0.21714179,105910.0,105890.0,0.5195368]
[1737738687177,0.40598279,105910.0,105890.0,0.5195368]
[1737738687387,0.59482379,105910.0,105890.0,0.3306628]
[1737738687995,0.40598279,105910.0,105890.0,0.3306628]
[1737738688219,0.40598279,105910.0,105890.0,0.5195378]
[1737738689369,7.9e-07,105910.0,105890.0,0.5195298]
[1737738689526,7.9e-07,105910.0,105900.0,0.141643]
[1737738690539,0.14163079,105910.0,105890.0,0.5195298]
[1737738690727,0.33047079,105910.0,105890.0,0.3306628]
[1737738690951,0.51931079,105910.0,105890.0,0.3306628]
[1737738691162,0.61665808,105910.0,105890.0,0.0001418]
[1737738691348,0.61665808,105910.0,105890.0,0.1417978]
[1737738691548,0.61665808,105910.0,105890.0,0.3306718]
[1737738693490,0.14163079,105910.0,105900.0,0.141643]
[1737738693857,0.14163379,105910.0,105890.0,0.5195388]
[1737738694104,0.14163379,105910.0,105890.0,0.7084038]
[1737738694308,0.14163379,105910.0,105890.0,0.5195298]
[1737738694510,0.33047579,105910.0,105890.0,0.3306628]
[1737738694720,0.14163379,105910.0,105890.0,0.3306628]
[1737738694965,0.14163379,105910.0,105890.0,0.5195268]
[1737738695170,0.33047379,105910.0,105890.0,0.5195268]
[1737738695533,0.33047379,105910.0,105890.0,0.7083918]
[1737738695730,7.9e-07,105910.0,105900.0,0.141643]
[1737738699899,0.14162979,105910.0,105890.0,0.5195218]
[1737738700077,0.14162979,105910.0,105890.0,0.3306598]
[1737738700078,0.60633228,105910.0,105890.0,0.3306598]
[1737738700318,0.79517928,105910.0,105890.0,0.3306598]
[1737738700537,0.69237108,105910.0,105890.0,0.5195258]
[1737738700761,0.69237108,105910.0,105900.0,0.141643]
[1737738700762,7.9e-07,105910.0,105900.0,0.141643]
[1737738702210,7.9e-07,105910.0,105900.0,0.216943]
[1737738703207,7.9e-07,105910.0,105900.0,0.31429029]
[1737738703413,7.9e-07,105910.0,105900.0,0.46429029]
[1737738705807,7.9e-07,105910.0,105900.0,0.48729029]
[1737738707055,7.9e-07,105910.0,105900.0,0.50625444]
[1737738707669,7.9e-07,105910.0,105900.0,0.51753151]
[1737738708915,7.9e-07,105910.0,105900.0,0.56433151]
[1737738709326,7.9e-07,105910.0,105900.0,0.88683151]
[1737738709532,7.9e-07,105910.0,105900.0,0.91494484]
[1737738713162,7.9e-07,105910.0,105900.0,0.91508664]
[1737738715292,7.9e-07,105910.0,105900.0,1.44868664]
[1737738715698,0.00029883,105940.0,105930.0,0.2324]
[1737738715874,0.00029821,105950.0,105940.0,0.463989]
[1737738716073,0.00019427,105950.0,105940.0,0.56133629]
[1737738716651,0.00019427,105950.0,105940.0,0.58937111]
[1737738716840,0.00019427,105950.0,105940.0,0.6114746]
[1737738717079,0.00019427,105950.0,105940.0,0.63660547]
[1737738717507,2.7e-07,105950.0,105940.0,1.18020547]
[1737738718601,2.7e-07,105950.0,105940.0,1.17020547]
[1737738718809,0.000298,105960.0,105950.0,0.392576]
[1737738718810,0.00025827,105960.0,105950.0,0.392576]
[1737738719029,0.0004056,105960.0,105950.0,0.48992329]
[1737738719567,0.0004056,105960.0,105950.0,0.46692329]
[1737738719794,0.0004056,105960.0,105950.0,0.31692329]
[1737738720170,0.0004056,105960.0,105950.0,0.46692329]
[1737738720377,0.0004056,105960.0,105950.0,0.5085097]
[1737738720863,0.0004056,105960.0,105950.0,1.0421097]
[1737738721718,6e-07,105960.0,105950.0,1.4110097]
[1737738721928,0.0159269,105980.0,105970.0,0.442449]
[1737738722112,0.0159269,105980.0,105970.0,1.42377716]
[1737738722311,0.0159269,105980.0,105970.0,1.45063929]
[1737738723006,0.0159269,105980.0,105970.0,1.39589629]
[1737738723370,0.0159269,105980.0,105970.0,1.42377716]
[1737738723573,0.0159269,105980.0,105970.0,1.39589629]
[1737738724197,0.0159269,105980.0,105970.0,1.42377716]
[1737738724375,0.0159269,105980.0,105970.0,1.39589629]
[1737738725454,0.01622469,105980.0,105970.0,1.39589629]
[1737738727117,0.01622469,105980.0,105970.0,0.86229629]
[1737738727447,0.01622469,105980.0,105970.0,0.87315278]
[1737738728029,0.01622469,105980.0,105970.0,0.8918501]
[1737738729998,0.01622469,105980.0,105970.0,0.7639501]
[1737738730437,0.01622469,105980.0,105970.0,0.4184501]
[1737738732711,0.01622469,105980.0,105970.0,0.4414501]
[1737738733110,0.01622469,105980.0,105970.0,0.5181501]
[1737738733315,0.01622469,105980.0,105970.0,1.0517501]
[1737738733969,6.9e-07,105980.0,105970.0,1.1178501]
[1737738735238,6.9e-07,105980.0,105970.0,0.5842501]
[1737738735455,6.9e-07,105980.0,105970.0,0.9750501]
[1737738737130,6.9e-07,105980.0,105970.0,0.4414501]
[1737738738021,0.08220069,105980.0,105970.0,0.141549]
[1737738738235,0.08220069,105980.0,105960.0,0.0001418]
[1737738738236,0.22374069,105980.0,105960.0,0.0001418]
[1737738738444,0.22374069,105980.0,105960.0,0.22591216]
[1737738738445,0.41246569,105980.0,105960.0,0.22591216]
[1737738738654,0.22373669,105980.0,105960.0,0.41466116]
[1737738738876,0.08220069,105980.0,105960.0,0.41466116]
[1737738739090,0.08220069,105980.0,105960.0,0.60340216]
[1737738739292,0.141549,105970.0,105960.0,0.08435416]
[1737738740207,0.23889629,105970.0,105960.0,0.08435416]
[1737738740814,0.09734729,105970.0,105960.0,0.08435416]
[1737738741026,0.41247069,105980.0,105960.0,0.22591616]
[1737738741232,0.08220069,105980.0,105960.0,0.41466216]
[1737738741446,0.22373669,105980.0,105960.0,0.60340316]
[1737738741863,0.08220069,105980.0,105960.0,0.60340316]
[1737738742066,0.41245869,105980.0,105960.0,0.0001418]
[1737738742271,0.23889629,105970.0,105960.0,0.0001418]
[1737738742478,0.141549,105970.0,105960.0,0.0001418]
[1737738742687,0.08220069,105980.0,105960.0,0.3304418]
[1737738742888,0.08220069,105980.0,105970.0,0.141549]
[1737738743227,0.08220069,105980.0,105960.0,0.5191828]
[1737738743407,0.08220069,105980.0,105960.0,0.5191818]
[1737738743620,0.41245169,105980.0,105960.0,0.3304418]
[1737738744209,0.50979898,105980.0,105960.0,0.1417018]
[1737738744416,0.69852598,105980.0,105960.0,0.0001418]
[1737738744615,0.55698998,105980.0,105960.0,0.0001418]
[1737738744821,0.88726498,105980.0,105960.0,0.0001418]
[1737738745053,0.69853798,105980.0,105960.0,0.0001418]
[1737738745225,0.69853798,105980.0,105960.0,0.1417038]
[1737738745554,0.141549,105970.0,105960.0,0.0001418]
[1737738745758,0.69853798,105980.0,105960.0,0.1417018]
[1737738745961,0.32109598,105980.0,105960.0,0.5191988]
[1737738746136,0.08220069,105980.0,105960.0,0.5191988]
[1737738746338,0.08220069,105980.0,105960.0,0.5191898]
[1737738746706,0.41245369,105980.0,105960.0,0.3304418]
[1737738747325,0.60117769,105980.0,105960.0,0.3304418]
[1737738747504,0.41245369,105980.0,105960.0,0.3304418]
[1737738747923,0.41245369,105980.0,105960.0,0.5191908]
[1737738748271,0.41245369,105980.0,105960.0,0.3304418]
[1737738748472,0.08220069,105980.0,105970.0,0.141549]
[1737738748921,0.08220069,105980.0,105960.0,0.5191798]
[1737738749150,0.22373769,105980.0,105960.0,0.7079218]
[1737738749371,0.22373669,105980.0,105970.0,0.141549]
[1737738749529,0.08220069,105980.0,105970.0,0.141549]
[1737738751429,6.9e-07,105980.0,105970.0,0.141549]
[1737738754579,6.9e-07,105980.0,105970.0,0.14249259]
[1737738757228,6.9e-07,105980.0,105970.0,0.141549]
[1737738757635,6.9e-07,105980.0,105960.0,0.5191778]
[1737738757839,6.9e-07,105980.0,105970.0,0.141549]
[1737738758534,6.9e-07,105980.0,105970.0,0.14249265]
[1737738758737,6.9e-07,105980.0,105970.0,0.141549]
[1737738760158,6.9e-07,105980.0,105970.0,0.1416908]
[1737738761557,6.9e-07,105980.0,105970.0,0.14263437]
[1737738762290,6.9e-07,105980.0,105970.0,0.1416908]
[1737738762739,6.9e-07,105980.0,105970.0,0.14152199]
[1737738772507,6.9e-07,105980.0,105970.0,0.38981285]
[1737738772636,6.9e-07,105980.0,105970.0,0.49316928]
[1737738774695,6.9e-07,105980.0,105970.0,0.47016928]
[1737738775889,6.9e-07,105980.0,105970.0,0.55438164]
[1737738777747,6.9e-07,105980.0,105970.0,0.57365138]
[1737738782822,6.9e-07,105980.0,105970.0,0.59665138]
[1737738783239,6.9e-07,105980.0,105970.0,0.62479266]
[1737738784822,6.9e-07,105980.0,105970.0,1.20619266]
[1737738786928,6.9e-07,105980.0,105970.0,1.1219803]
[1737738791453,6.9e-07,105980.0,105970.0,1.0989803]
[1737738791882,6.9e-07,105980.0,105970.0,1.1219803]
[1737738809709,6.9e-07,105980.0,105970.0,0.5883803]
[1737738810773,6.9e-07,105980.0,105970.0,0.4362803]
[1737738810985,6.9e-07,105980.0,105970.0,0.2862803]
[1737738811201,0.08200069,105980.0,105970.0,0.0001418]
[1737738811614,0.08200069,105980.0,105970.0,0.1416908]
[1737738811828,0.08200069,105980.0,105970.0,0.0001418]
[1737738812508,0.27073669,105980.0,105970.0,0.0001418]
[1737738812941,0.27073669,105980.0,105970.0,0.23903809]
[1737738812942,0.08200069,105980.0,105970.0,0.23903809]
[1737738814428,0.08200069,105980.0,105970.0,0.1416908]
[1737738814797,0.08200069,105980.0,105970.0,0.0001418]
[1737738815015,0.08200069,105980.0,105970.0,0.1416908]
[1737738816520,0.22353669,105980.0,105970.0,0.0001418]
[1737738816634,0.08200069,105980.0,105970.0,0.0001418]
[1737738816837,0.08200069,105980.0,105970.0,0.1416908]
[1737738817257,0.08200069,105980.0,105970.0,0.0001418]
[1737738818112,0.22353669,105980.0,105970.0,0.0001418]
[1737738818592,0.08200069,105980.0,105970.0,0.0001418]
[1737738818818,0.08200069,105980.0,105970.0,0.1416908]
[1737738821199,0.22353669,105980.0,105970.0,0.0001418]
[1737738821420,0.32088398,105980.0,105970.0,0.0001418]
[1737738821556,0.33088398,105980.0,105970.0,0.0001418]
[1737738821916,0.38018398,105980.0,105970.0,0.0001418]
[1737738825452,0.37018398,105980.0,105970.0,0.0001418]
[1737738826409,0.27283669,105980.0,105970.0,0.0001418]
[1737738827782,0.22353669,105980.0,105970.0,0.0001418]
[1737738828041,6.9e-07,105980.0,105970.0,0.1416908]
[1737738833296,0.14153669,105980.0,105970.0,0.0001418]
[1737738833570,0.31408398,105980.0,105970.0,0.0001418]
[1737738833790,0.6638826,105980.0,105970.0,0.0001418]
[1737738834005,0.5512826,105980.0,105970.0,0.0001418]
[1737738834214,0.5179572,105970.0,105960.0,0.0001418]
[1737738834426,0.199476,105950.0,105940.0,0.08456568]
[1737738834631,0.37252329,105950.0,105940.0,0.08471301]
[1737738834838,0.36252329,105950.0,105940.0,0.08471301]
[1737738837108,0.36252329,105950.0,105940.0,0.00014733]
[1737738837333,0.17304729,105950.0,105940.0,0.00014733]
[1737738837513,0.5191,105960.0,105940.0,0.00014733]
[1737738837722,0.141576,105950.0,105940.0,0.00014733]
[1737738838140,0.1591201,105950.0,105940.0,0.00014733]
[1737738838557,0.25646739,105950.0,105940.0,0.00014733]
[1737738838990,0.50637559,105950.0,105940.0,0.00014733]
[1737738839205,0.63637559,105950.0,105940.0,0.00014733]
[1737738839427,0.61883149,105950.0,105940.0,0.00014733]
[1737738839936,0.48883149,105950.0,105940.0,0.00014733]
[1737738840216,0.39602329,105950.0,105940.0,0.00014733]
[1737738840424,0.48883149,105950.0,105940.0,0.00014733]
[1737738840638,0.61883149,105950.0,105940.0,0.00028913]
[1737738841084,0.64183149,105950.0,105940.0,0.00028913]
[1737738841732,0.62864551,105950.0,105940.0,0.00028913]
[1737738843579,0.64776856,105950.0,105940.0,0.00028913]
[1737738844058,0.38583731,105950.0,105940.0,0.00028913]
[1737738844482,0.55583731,105950.0,105940.0,0.00028913]
[1737738844904,0.53583731,105950.0,105940.0,0.00028913]
[1737738845557,0.330335,105960.0,105940.0,0.00028913]
[1737738845773,0.408896,105970.0,105950.0,0.141576]
[1737738845953,0.141563,105960.0,105940.0,0.56533813]
[1737738846784,0.61638429,105970.0,105940.0,0.56533813]
[1737738846992,0.141563,105960.0,105940.0,0.56533813]
[1737738847206,0.61638429,105970.0,105940.0,0.56533813]
[1737738847422,0.141562,105960.0,105940.0,0.56533813]
[1737738847618,0.141562,105960.0,105940.0,0.04618913]
[1737738847859,0.33032,105960.0,105940.0,0.04618913]
[1737738848057,0.33032,105960.0,105940.0,0.37656313]
[1737738848678,0.42766729,105960.0,105940.0,0.18777713]
[1737738849440,0.141576,105950.0,105940.0,0.00028913]
[1737738852432,0.23892329,105950.0,105940.0,0.00028913]
[1737738853888,0.00029779,105960.0,105950.0,0.141576]
[1737738854106,0.28641008,105960.0,105940.0,0.12988913]
[1737738854249,0.141576,105950.0,105940.0,0.12988913]
[1737738854683,0.141576,105950.0,105940.0,0.08118913]
[1737738854889,0.23892329,105950.0,105940.0,0.08118913]
[1737738855068,0.23892329,105950.0,105940.0,0.00028913]
[1737738875147,0.42557677,105960.0,105940.0,0.00028913]
[1737738875327,0.48515206,105960.0,105940.0,0.00028913]
[1737738875629,0.15922153,105950.0,105940.0,0.00028913]
[1737738877131,0.141576,105950.0,105940.0,0.00028913]
[1737738877335,0.23892329,105950.0,105940.0,0.00028913]
[1737738879026,0.09734729,105950.0,105940.0,0.14187813]
[1737738879460,0.23892329,105950.0,105940.0,0.00028913]
[1737738880085,0.51939079,105960.0,105940.0,0.37955913]
[1737738880292,0.42797708,105960.0,105950.0,0.0803]
[1737738881766,0.33062979,105960.0,105950.0,0.0803]
[1737738884372,0.00029779,105960.0,105950.0,0.221876]
[1737738884839,0.00029779,105960.0,105950.0,0.51852329]
[1737738885046,0.00029779,105960.0,105950.0,0.54670056]
[1737738885254,0.00029779,105960.0,105950.0,0.271176]
[1737738886479,0.00029779,105960.0,105950.0,0.29011682]
[1737738887582,0.00029779,105960.0,105950.0,0.37441143]
[1737738892973,0.00029779,105960.0,105950.0,0.37441143]
[1737738894036,0.00029779,105960.0,105950.0,0.62175872]
[1737738896924,0.00029779,105960.0,105950.0,0.62190052]
[1737738899989,0.00029779,105960.0,105950.0,0.52455323]
[1737738900695,0.00029779,105960.0,105950.0,0.62190052]
[1737738901113,0.00029779,105960.0,105950.0,0.53760591]
[1737738909204,0.00029779,105960.0,105950.0,0.2713178]
[1737738910454,0.00029779,105960.0,105950.0,0.1417178]
[1737738910667,0.00029779,105960.0,105950.0,0.14266157]
[1737738910943,0.00029779,105960.0,105950.0,0.18966157]
[1737738912465,0.00029779,105960.0,105950.0,0.28700886]
[1737738912673,0.00029779,105960.0,105950.0,0.36216509]
[1737738913738,0.00029779,105960.0,105950.0,0.51216509]
[1737738916535,0.00029779,105960.0,105950.0,0.54030591]
[1737738916933,0.00029779,105960.0,105950.0,0.64333479]
[1737738920027,0.00029779,105960.0,105950.0,0.5459875]
[1737738920234,0.00029779,105960.0,105950.0,0.37601241]
[1737738921275,0.00029779,105960.0,105950.0,0.4733597]
[1737738921482,0.00029779,105960.0,105950.0,0.5532597]
[1737738921664,0.00029779,105960.0,105950.0,0.6023597]
[1737738922082,0.00029779,105960.0,105950.0,0.63053144]
[1737738923546,0.00029779,105960.0,105950.0,0.54623683]
[1737738924082,0.00029779,105960.0,105950.0,1.10283683]
[1737738928415,0.00029779,105960.0,105950.0,1.07983683]
[1737738928830,0.00029779,105960.0,105950.0,0.92983683]
[1737738929039,0.00029779,105960.0,105950.0,0.90166509]
[1737738929282,7.9e-07,105960.0,105950.0,1.10280821]
[1737738929485,6.9e-07,105980.0,105970.0,0.288149]
[1737738929696,6.9e-07,105980.0,105970.0,0.92423941]
[1737738930028,6.9e-07,105980.0,105970.0,0.94723941]
[1737738933484,6.9e-07,105980.0,105970.0,1.09723941]
[1737738933718,0.00079779,106000.0,105990.0,0.445722]
[1737738933922,7.9e-07,106000.0,105990.0,0.57121241]
[1737738934469,7.9e-07,106000.0,105990.0,1.10481241]
[1737738934888,1e-08,106000.0,105990.0,1.11481241]
[1737738935238,0.00029779,106020.0,106010.0,0.286796]
[1737738935428,7.9e-07,106020.0,106010.0,1.07774329]
[1737738935630,0.00029779,106070.0,106060.0,0.141429]
[1737738935832,0.00078872,106070.0,106060.0,0.141429]
[1737738936265,0.0762,106060.0,106050.0,0.188574]
[1737738936889,0.08168872,106070.0,106060.0,0.141429]
[1737738937089,0.08168872,106070.0,106050.0,0.518586]
[1737738937090,0.22310572,106070.0,106050.0,0.518586]
[1737738937457,0.08168872,106070.0,106060.0,0.141429]
[1737738938848,0.141448,106050.0,106030.0,0.34907606]
[1737738939067,0.0823,106040.0,106030.0,0.141466]
[1737738941662,0.0823,106040.0,106020.0,0.377262]
[1737738941867,0.0823,106040.0,106020.0,0.61608329]
[1737738942908,0.0823,106040.0,106020.0,0.80471629]
[1737738943114,0.0823,106040.0,106020.0,0.61608329]